bitfinex-derivatives/quotes_BTCF0:USTF0_20240913
["timestamp","ask_amount","ask_price","bid_price","bid_amount"]
[1726201460672,0.090223,57986.0,57985.0,0.54119287]
[1726201462579,0.090223,57986.0,57985.0,0.47227893]
[1726201462878,0.220418,57986.0,57985.0,0.11147893]
[1726201463279,0.220418,57986.0,57985.0,0.47227893]
[1726201464981,0.22041761,57986.0,57985.0,0.47227893]
[1726201465584,0.16750107,57986.0,57985.0,0.47227893]
[1726201465774,0.27042573,57986.0,57985.0,0.47227893]
[1726201465974,0.30548648,57986.0,57985.0,0.11147893]
[1726201466287,0.30548648,57986.0,57985.0,0.47227893]
[1726201466473,0.30548648,57986.0,57985.0,0.11147893]
[1726201466672,0.16750107,57986.0,57985.0,0.38605493]
[1726201469187,0.16740709,57986.0,57985.0,0.38605493]
[1726201469374,0.16740709,57986.0,57985.0,0.38333493]
[1726201470681,0.090223,57986.0,57985.0,0.38333493]
[1726201473082,0.090223,57986.0,57985.0,0.02253493]
[1726201473479,0.090223,57986.0,57985.0,0.09142165]
[1726201475988,0.090223,57986.0,57985.0,0.02253493]
[1726201477684,0.24102917,57986.0,57985.0,0.02253493]
[1726201482277,0.18810755,57986.0,57985.0,0.02253493]
[1726201482477,0.24904049,57986.0,57985.0,0.02253493]
[1726201482693,0.32604047,57986.0,57985.0,0.02253493]
[1726201483092,0.18810755,57986.0,57985.0,0.02253493]
[1726201483691,0.18810755,57986.0,57985.0,0.02525493]
[1726201484182,0.32604047,57986.0,57985.0,0.02525493]
[1726201484580,0.30515971,57986.0,57985.0,0.02525493]
[1726201484782,0.30523353,57986.0,57985.0,0.02525493]
[1726201485492,0.30523711,57986.0,57985.0,0.02525493]
[1726201485684,0.2281595,57986.0,57985.0,0.02525493]
[1726201486079,0.090223,57986.0,57985.0,0.02525493]
[1726201488000,0.451023,57986.0,57985.0,0.02525493]
[1726201488692,0.090223,57986.0,57985.0,0.02525493]
[1726201491387,0.090223,57986.0,57985.0,0.34425493]
[1726201492196,0.090223,57986.0,57985.0,0.43047893]
[1726201492699,0.16733203,57986.0,57985.0,0.43047893]
[1726201496200,0.12511292,57986.0,57985.0,0.43047893]
[1726201496500,0.24582797,57986.0,57985.0,0.43047893]
[1726201496694,0.12511292,57986.0,57985.0,0.43047893]
[1726201498494,0.16733239,57986.0,57985.0,0.43047893]
[1726201499493,0.16732738,57986.0,57985.0,0.43047893]
[1726201500711,0.090223,57986.0,57985.0,0.43047893]
[1726201502909,0.004,57986.0,57985.0,0.55047893]
[1726201503410,0.004,57986.0,57985.0,1.57047893]
[1726201504095,0.004,57986.0,57985.0,0.43047893]
[1726201506211,0.004,57986.0,57985.0,0.48211655]
[1726201509110,0.090223,57986.0,57985.0,0.48211655]
[1726201509409,0.004,57986.0,57985.0,0.48211655]
[1726201509607,0.004,57986.0,57985.0,0.43047893]
[1726201510405,0.004,57986.0,57985.0,0.48211655]
[1726201511207,0.210223,57986.0,57985.0,0.409944]
[1726201514913,0.34024057,57986.0,57985.0,0.409944]
[1726201516511,0.49544615,57986.0,57985.0,0.409944]
[1726201516720,0.34024057,57986.0,57985.0,0.409944]
[1726201517015,0.49544526,57986.0,57985.0,0.409944]
[1726201517212,0.34024057,57986.0,57985.0,0.409944]
[1726201517410,0.34028358,57986.0,57985.0,0.409944]
[1726201519019,0.34028358,57986.0,57985.0,0.32372]
[1726201519406,0.94387041,57986.0,57985.0,0.32372]
[1726201519713,1.60571001,57986.0,57985.0,0.1969907]
[1726201520718,0.08623,57981.0,57978.0,0.004]
[1726201520915,0.086236,57977.0,57976.0,0.004]
[1726201521121,0.086242,57973.0,57972.0,0.004]
[1726201521420,0.086244,57972.0,57970.0,0.086247]
[1726201521723,0.18138562,57972.0,57970.0,0.086247]
[1726201521911,0.21630841,57972.0,57970.0,0.086247]
[1726201522117,0.16192695,57972.0,57971.0,0.38148788]
[1726201522620,0.21485571,57972.0,57971.0,0.02068788]
[1726201522818,0.086244,57972.0,57971.0,0.06881966]
[1726201523013,0.086244,57972.0,57970.0,0.06881966]
[1726201523213,0.12,57971.0,57969.0,0.06881966]
[1726201523514,0.206245,57971.0,57970.0,0.06881966]
[1726201523812,0.086247,57970.0,57969.0,0.06881966]
[1726201524010,0.204247,57970.0,57969.0,0.06881966]
[1726201524411,0.204247,57970.0,57969.0,0.07181966]
[1726201524608,0.202247,57970.0,57969.0,0.003]
[1726201525306,0.202247,57970.0,57969.0,0.007]
[1726201526611,0.202247,57970.0,57969.0,0.004]
[1726201526915,0.202247,57970.0,57969.0,0.006]
[1726201527119,0.202247,57970.0,57969.0,0.05755784]
[1726201528023,0.202247,57970.0,57969.0,0.05555784]
[1726201529321,0.202247,57970.0,57969.0,0.004]
[1726201529727,0.2231976,57970.0,57969.0,0.004]
[1726201529913,0.18005303,57970.0,57969.0,0.004]
[1726201532422,0.18005303,57970.0,57969.0,0.07269288]
[1726201537434,0.16210243,57970.0,57969.0,0.07069288]
[1726201537830,0.16210243,57970.0,57969.0,0.002]
[1726201538728,0.086248,57969.0,57968.0,0.08625]
[1726201539831,0.088248,57969.0,57968.0,0.08625]
[1726201540528,0.002,57969.0,57968.0,0.44705]
[1726201540729,0.004,57969.0,57968.0,0.49255]
[1726201541125,0.090248,57969.0,57968.0,0.49255]
[1726201547741,0.090248,57969.0,57968.0,0.57870083]
[1726201548133,0.090248,57969.0,57968.0,0.61242966]
[1726201548736,0.210248,57969.0,57968.0,0.57854778]
[1726201549040,0.210248,57969.0,57968.0,0.69855249]
[1726201549431,0.210248,57969.0,57968.0,0.61255471]
[1726201550938,0.210248,57969.0,57968.0,0.25175471]
[1726201552941,0.2439828,57969.0,57968.0,0.13175]
[1726201559852,0.210248,57969.0,57968.0,0.39502715]
[1726201560754,0.210248,57969.0,57968.0,0.39502343]
[1726201561346,0.210248,57969.0,57968.0,0.39502328]
[1726201564860,0.210248,57969.0,57968.0,0.39505074]
[1726201565655,0.210248,57969.0,57968.0,0.25187105]
[1726201566251,0.210248,57969.0,57968.0,0.20637105]
[1726201566557,0.210248,57969.0,57968.0,0.34954738]
[1726201567864,0.210248,57969.0,57968.0,0.20637105]
[1726201568054,0.2439747,57969.0,57968.0,0.08625]
[1726201571256,0.28620529,57969.0,57968.0,0.08625]
[1726201571850,0.36473272,57969.0,57968.0,0.08625]
[1726201575066,0.28786119,57969.0,57968.0,0.34958117]
[1726201582963,0.16710317,57969.0,57968.0,0.20638493]
[1726201584067,0.16710317,57969.0,57968.0,0.20910493]
[1726201587075,0.04710317,57969.0,57968.0,0.20910493]
[1726201589474,0.04710317,57969.0,57968.0,0.20880252]
[1726201589983,0.20200628,57969.0,57968.0,0.08897]
[1726201592885,0.15490311,57969.0,57968.0,0.08897]
[1726201593178,0.07636346,57969.0,57968.0,0.08897]
[1726201596081,0.15491506,57969.0,57968.0,0.08897]
[1726201597979,0.086248,57970.0,57969.0,0.086248]
[1726201598179,0.086248,57970.0,57969.0,0.34904932]
[1726201599480,0.087248,57970.0,57969.0,0.34904932]
[1726201600794,0.089248,57970.0,57969.0,0.34904932]
[1726201603887,0.089248,57970.0,57969.0,0.34906905]
[1726201605089,0.12328839,57970.0,57969.0,0.086248]
[1726201608798,0.12328129,57970.0,57969.0,0.086248]
[1726201610690,0.03703329,57970.0,57969.0,0.086248]
[1726201610892,0.03703329,57970.0,57969.0,0.339796]
[1726201612297,0.003,57970.0,57969.0,1.543564]
[1726201612488,0.008,57977.0,57976.0,0.172476]
[1726201612689,0.008,57977.0,57976.0,0.4808]
[1726201612690,0.03416376,57977.0,57976.0,0.4808]
[1726201612891,0.12074525,57980.0,57977.0,0.086236]
[1726201613194,0.22737037,57983.0,57982.0,0.086229]
[1726201613393,0.22737037,57983.0,57982.0,0.20575462]
[1726201613598,0.22737037,57983.0,57982.0,0.20569649]
[1726201614199,0.22737037,57983.0,57982.0,0.29171802]
[1726201614798,0.22937037,57983.0,57982.0,0.29271802]
[1726201615690,0.22937037,57983.0,57982.0,0.17325053]
[1726201615892,0.22937037,57983.0,57982.0,0.2926823]
[1726201616094,0.22937037,57983.0,57982.0,0.088229]
[1726201620996,0.22937037,57983.0,57982.0,0.10906767]
[1726201621392,0.02314337,57983.0,57982.0,0.22906767]
[1726201621694,0.002,57983.0,57982.0,0.31529667]
[1726201623223,0.257217,57990.0,57989.0,0.086218]
[1726201623508,0.253217,57990.0,57989.0,0.086218]
[1726201624504,0.27645793,57990.0,57989.0,0.087218]
[1726201626302,0.27645793,57990.0,57989.0,0.088218]
[1726201628096,0.40615661,57990.0,57989.0,0.05369236]
[1726201629707,0.40615661,57990.0,57989.0,0.07413077]
[1726201631497,0.40585191,57990.0,57989.0,0.07413077]
[1726201635102,0.27645793,57990.0,57989.0,0.07413077]
[1726201640512,0.002,57990.0,57989.0,0.43493077]
[1726201643113,0.0367515,57990.0,57989.0,0.43493077]
[1726201643309,0.13187734,57990.0,57989.0,0.43493077]
[1726201646913,0.13187734,57990.0,57989.0,0.52114877]
[1726201647730,0.13187734,57990.0,57989.0,0.43493077]
[1726201649712,0.07894527,57990.0,57989.0,0.43493077]
[1726201649908,0.13185665,57990.0,57989.0,0.43493077]
[1726201650118,0.002,57990.0,57989.0,0.48651348]
[1726201652314,0.002,57990.0,57989.0,0.43493077]
[1726201658017,0.002,57990.0,57989.0,0.07413077]
[1726201658317,0.0442134,57990.0,57989.0,0.43493077]
[1726201658621,0.002,57990.0,57989.0,0.43493077]
[1726201659125,0.05491163,57990.0,57989.0,0.43493077]
[1726201659314,0.13182425,57990.0,57989.0,0.43493077]
[1726201663623,0.28683664,57990.0,57989.0,0.43493077]
[1726201665124,0.15701239,57990.0,57989.0,0.43493077]
[1726201665326,0.002,57990.0,57989.0,0.48651348]
[1726201667435,0.002,57990.0,57989.0,0.43493077]
[1726201669535,0.002,57990.0,57989.0,0.50370771]
[1726201670829,0.002,57990.0,57989.0,0.43493077]
[1726201673937,0.002,57990.0,57989.0,0.07413077]
[1726201674239,0.002,57990.0,57989.0,0.43493077]
[1726201676132,0.002,57990.0,57989.0,0.07413077]
[1726201676542,0.002,57990.0,57989.0,0.43493077]
[1726201678236,0.002,57990.0,57989.0,0.07413077]
[1726201678542,0.002,57990.0,57989.0,0.43493077]
[1726201679244,0.002,57990.0,57989.0,0.07413077]
[1726201679449,0.002,57990.0,57989.0,0.43493077]
[1726201679638,0.002,57990.0,57989.0,0.07413077]
[1726201679945,0.002,57990.0,57989.0,0.43493077]
[1726201680352,0.03673931,57990.0,57989.0,0.43493077]
[1726201680850,0.21694576,57990.0,57989.0,0.43493077]
[1726201686337,0.21694576,57990.0,57989.0,0.43765077]
[1726201687546,0.21694576,57990.0,57989.0,0.07685077]
[1726201687739,0.21694576,57990.0,57989.0,0.43765077]
[1726201687740,0.0789524,57990.0,57989.0,0.43765077]
[1726201687941,0.03673931,57990.0,57989.0,0.43765077]
[1726201688342,0.002,57990.0,57989.0,0.43765077]
[1726201691448,0.002,57990.0,57989.0,0.07685077]
[1726201691744,0.002,57990.0,57989.0,0.43765077]
[1726201691955,0.002,57990.0,57989.0,0.07685077]
[1726201692145,0.002,57990.0,57989.0,0.43765077]
[1726201692548,0.002,57990.0,57989.0,0.07685077]
[1726201693353,0.002,57990.0,57989.0,0.43765077]
[1726201695343,0.07886133,57990.0,57989.0,0.43765077]
[1726201696051,0.13177134,57990.0,57989.0,0.43765077]
[1726201696272,0.002,57990.0,57989.0,0.43765077]
[1726201696557,0.15722557,57990.0,57989.0,0.43765077]
[1726201696852,0.13177134,57990.0,57989.0,0.43765077]
[1726201702756,0.13186231,57990.0,57989.0,0.43765077]
[1726201703468,0.002,57990.0,57989.0,0.50653045]
[1726201704066,0.002,57990.0,57989.0,0.43765077]
[1726201704360,0.002,57990.0,57989.0,0.50651939]
[1726201704570,0.002,57990.0,57989.0,0.43765077]
[1726201704953,0.002,57990.0,57989.0,0.50651969]
[1726201705149,0.002,57990.0,57989.0,0.43765077]
[1726201705757,0.002,57990.0,57989.0,0.50651826]
[1726201705953,0.002,57990.0,57989.0,0.43765077]
[1726201708670,0.002,57990.0,57989.0,0.5065367]
[1726201708870,0.002,57990.0,57989.0,0.43765077]
[1726201715072,0.088217,57990.0,57989.0,0.50653256]
[1726201715262,0.088217,57990.0,57989.0,0.43765077]
[1726201715778,0.088217,57990.0,57989.0,0.50652729]
[1726201716071,0.088217,57990.0,57989.0,0.50653101]
[1726201717270,0.002,57990.0,57989.0,0.50653101]
[1726201717577,0.002,57990.0,57989.0,0.43765077]
[1726201717781,0.0788915,57990.0,57989.0,0.43765077]
[1726201718480,0.03667812,57990.0,57989.0,0.52386877]
[1726201718983,0.03667812,57990.0,57989.0,1.66386877]
[1726201719477,0.03667812,57990.0,57989.0,1.78386877]
[1726201719678,0.15723183,57990.0,57989.0,1.78386877]
[1726201719979,0.19190995,57990.0,57989.0,1.78386877]
[1726201720281,0.28703027,57990.0,57989.0,1.78386877]
[1726201721175,0.13179844,57990.0,57989.0,1.78386877]
[1726201721668,0.13179844,57990.0,57989.0,0.64386877]
[1726201722382,0.13193514,57990.0,57989.0,0.64386877]
[1726201725673,0.002,57990.0,57989.0,0.64386877]
[1726201727282,0.002,57990.0,57989.0,0.64114877]
[1726201727685,0.002,57990.0,57989.0,0.28034877]
[1726201727874,0.002,57990.0,57989.0,0.64114877]
[1726201728479,0.002,57990.0,57989.0,0.28034877]
[1726201728779,0.002,57990.0,57989.0,0.64114877]
[1726201730188,0.002,57990.0,57989.0,0.28034877]
[1726201730388,0.002,57990.0,57989.0,0.64114877]
[1726201730890,0.002,57990.0,57989.0,0.28034877]
[1726201731188,0.002,57990.0,57989.0,0.64114877]
[1726201731389,0.002,57990.0,57989.0,0.55493077]
[1726201732587,0.04421223,57990.0,57989.0,0.55493077]
[1726201732890,0.002,57990.0,57989.0,0.55493077]
[1726201733278,0.07894749,57990.0,57989.0,0.55493077]
[1726201735586,0.002,57990.0,57989.0,0.55493077]
[1726201735776,0.04421223,57990.0,57989.0,0.55493077]
[1726201735977,0.07894749,57990.0,57989.0,0.55493077]
[1726201736997,0.07697675,57990.0,57989.0,0.55393077]
[1726201737179,0.07897675,57990.0,57989.0,0.55493077]
[1726201737488,0.07897675,57990.0,57989.0,0.55393077]
[1726201737691,0.07897675,57990.0,57989.0,0.55493077]
[1726201740586,0.002,57990.0,57989.0,0.62381166]
[1726201741090,0.002,57990.0,57989.0,0.55493077]
[1726201741294,0.002,57990.0,57989.0,0.62381015]
[1726201741690,0.002,57990.0,57989.0,0.62653015]
[1726201742484,0.002,57990.0,57989.0,0.55765077]
[1726201742694,0.002,57990.0,57989.0,0.62652789]
[1726201742888,0.002,57990.0,57989.0,0.55765077]
[1726201743183,0.002,57990.0,57989.0,0.62652801]
[1726201745290,0.002,57990.0,57989.0,0.62653038]
[1726201746199,0.002,57990.0,57989.0,0.55765077]
[1726201747597,0.20866229,57990.0,57989.0,0.55765077]
[1726201747796,0.303786,57990.0,57989.0,0.55765077]
[1726201748401,0.30422282,57990.0,57989.0,0.55765077]
[1726201749398,0.13179143,57990.0,57989.0,0.55765077]
[1726201749791,0.20909927,57990.0,57989.0,0.55765077]
[1726201749993,0.13179143,57990.0,57989.0,0.55765077]
[1726201750494,0.07888053,57990.0,57989.0,0.55765077]
[1726201752092,0.07888053,57990.0,57989.0,0.19685077]
[1726201752293,0.07888053,57990.0,57989.0,0.55765077]
[1726201755114,0.07882204,57990.0,57989.0,0.55765077]
[1726201755604,0.002,57990.0,57989.0,0.55765077]
[1726201758498,0.002,57990.0,57989.0,0.62652162]
[1726201762610,0.002,57990.0,57989.0,0.26572162]
[1726201762809,0.002,57990.0,57989.0,0.62652162]
[1726201766108,0.002,57990.0,57989.0,0.26572162]
[1726201766307,0.002,57990.0,57989.0,0.62652162]
[1726201766507,0.002,57990.0,57989.0,0.26572162]
[1726201766707,0.002,57990.0,57989.0,0.62652162]
[1726201768210,0.002,57990.0,57989.0,0.55765077]
[1726201770608,0.03664808,57990.0,57989.0,0.55765077]
[1726201770808,0.13177261,57990.0,57989.0,0.55765077]
[1726201775313,0.13177261,57990.0,57989.0,0.19685077]
[1726201775514,0.07886126,57990.0,57989.0,0.55765077]
[1726201775720,0.13177167,57990.0,57989.0,0.55765077]
[1726201775920,0.13177251,57990.0,57989.0,0.55765077]
[1726201776126,0.07886126,57990.0,57989.0,0.55765077]
[1726201776421,0.002,57990.0,57989.0,0.55765077]
[1726201776618,0.13177097,57990.0,57989.0,0.55765077]
[1726201777516,0.13177097,57990.0,57989.0,0.55493077]
[1726201777720,0.002,57990.0,57989.0,0.55493077]
[1726201778529,0.002,57990.0,57989.0,0.19413077]
[1726201778829,0.002,57990.0,57989.0,0.55493077]
[1726201780028,0.002,57990.0,57989.0,0.19413077]
[1726201780231,0.002,57990.0,57989.0,0.55493077]
[1726201781526,0.002,57990.0,57989.0,0.43493077]
[1726201784131,0.002,57990.0,57989.0,0.07413077]
[1726201784625,0.002,57990.0,57989.0,0.43493077]
[1726201785632,0.08954234,57990.0,57989.0,0.52114877]
[1726201785826,0.14245378,57990.0,57989.0,0.43493077]
[1726201786130,0.07884415,57990.0,57989.0,0.52114877]
[1726201786328,0.04421325,57990.0,57989.0,0.52114877]
[1726201786521,0.002,57990.0,57989.0,0.52114877]
[1726201786718,0.07884415,57990.0,57989.0,0.43493077]
[1726201786922,0.002,57990.0,57989.0,0.52114877]
[1726201787126,0.17243398,57996.0,57989.0,1.58677641]
[1726201787127,0.13792396,57992.0,57989.0,1.58677641]
[1726201787331,0.17243398,57999.0,57989.0,1.58677641]
[1726201787332,0.12062088,57995.0,57991.0,0.12]
[1726201787526,0.15522365,58002.0,58001.0,0.086201]
[1726201787727,0.70268167,58005.0,58001.0,0.086201]
[1726201787728,0.85782531,58005.0,58004.0,0.086196]
[1726201788036,0.90948191,58005.0,58004.0,0.446996]
[1726201788222,0.85658531,58005.0,58004.0,0.446996]
[1726201788429,0.70136166,58005.0,58004.0,0.446996]
[1726201789133,0.70336166,58005.0,58004.0,0.447996]
[1726201790025,0.70336166,58005.0,58004.0,0.448996]
[1726201793841,0.70336166,58005.0,58004.0,0.47011906]
[1726201799035,0.002,58005.0,58004.0,0.47011906]
[1726201800237,0.002,58005.0,58004.0,0.46911906]
[1726201800444,0.002,58005.0,58004.0,0.47011906]
[1726201801143,0.206187,58010.0,58009.0,0.086189]
[1726201802440,0.207187,58010.0,58009.0,0.087189]
[1726201803642,0.001,58010.0,58009.0,0.208189]
[1726201805444,0.20618,58015.0,58012.0,0.086184]
[1726201805645,0.20618,58015.0,58014.0,0.3608]
[1726201807252,0.08618,58015.0,58014.0,0.3608]
[1726201807548,0.08618,58015.0,58014.0,0.446981]
[1726201807750,0.21455265,58015.0,58014.0,0.447981]
[1726201808349,0.21555265,58015.0,58014.0,0.447981]
[1726201809242,0.21555265,58015.0,58014.0,0.448981]
[1726201813643,0.4045083,58015.0,58014.0,0.448981]
[1726201814455,0.21555265,58015.0,58014.0,0.448981]
[1726201814853,0.30173365,58015.0,58014.0,0.002]
[1726201815247,0.36353825,58015.0,58014.0,0.002]
[1726201815755,0.173361,58015.0,58014.0,0.002]
[1726201816355,0.1204684,58015.0,58014.0,0.002]
[1726201816557,0.08718,58015.0,58014.0,0.002]
[1726201817645,0.001,58015.0,58014.0,1.686101]
[1726201817943,0.004,58021.0,58020.0,0.086172]
[1726201818252,0.124,58028.0,58021.0,0.08617]
[1726201818253,0.008,58028.0,58021.0,0.08617]
[1726201818456,0.12,58023.0,58021.0,0.08617]
[1726201819148,0.086169,58022.0,58021.0,0.08617]
[1726201820955,0.086169,58022.0,58021.0,0.08717]
[1726201821656,0.603209,58022.0,58021.0,0.001]
[1726201822153,0.603209,58022.0,58021.0,0.002]
[1726201822745,0.75695868,58022.0,58021.0,0.002]
[1726201822950,0.77775347,58022.0,58021.0,0.002]
[1726201823658,0.8371588,58022.0,58021.0,0.002]
[1726201824060,0.6994843,58022.0,58021.0,0.002]
[1726201825861,0.2353334,58022.0,58021.0,0.002]
[1726201829050,0.40742653,58022.0,58021.0,0.002]
[1726201830050,0.27905692,58022.0,58021.0,0.002]
[1726201830273,0.4074257,58022.0,58021.0,0.002]
[1726201830457,0.21453717,58022.0,58021.0,0.002]
[1726201830656,0.21453717,58022.0,58021.0,0.088171]
[1726201830860,0.086169,58022.0,58021.0,0.088171]
[1726201832760,0.3608,58025.0,58024.0,0.086166]
[1726201832761,0.446965,58025.0,58024.0,0.086166]
[1726201834464,0.446965,58025.0,58024.0,0.088166]
[1726201836074,0.566965,58025.0,58024.0,0.088166]
[1726201837758,0.69532739,58025.0,58024.0,0.088166]
[1726201837961,0.86742052,58025.0,58024.0,0.088166]
[1726201839168,0.69532739,58025.0,58024.0,0.088166]
[1726201840071,0.78148953,58025.0,58024.0,0.002]
[1726201840564,0.95358266,58025.0,58024.0,0.002]
[1726201841076,0.95362406,58025.0,58024.0,0.002]
[1726201841662,0.78148953,58025.0,58024.0,0.002]
[1726201841862,0.57532453,58025.0,58024.0,0.002]
[1726201845367,0.74745906,58025.0,58024.0,0.002]
[1726201845765,0.61909953,58025.0,58024.0,0.002]
[1726201845967,0.086165,58025.0,58024.0,0.002]
[1726201855889,0.17233,58025.0,58024.0,0.002]
[1726201856380,0.086165,58025.0,58024.0,0.002]
[1726201857183,0.17233,58025.0,58024.0,0.002]
[1726201858173,0.20561314,58025.0,58024.0,0.002]
[1726201859380,0.20561328,58025.0,58024.0,0.002]
[1726201859581,0.17233,58025.0,58024.0,0.002]
[1726201860386,0.26363,58025.0,58024.0,0.002]
[1726201860789,0.39199583,58025.0,58024.0,0.002]
[1726201861294,0.45379619,58025.0,58024.0,0.002]
[1726201861493,0.64309863,58025.0,58024.0,0.002]
[1726201861693,1.24630363,58025.0,58024.0,0.002]
[1726201861896,0.172342,58021.0,58020.0,0.004]
[1726201862189,0.086175,58018.0,58017.0,0.3608]
[1726201862391,0.16165285,58018.0,58017.0,0.3608]
[1726201862593,0.21454083,58018.0,58017.0,0.3608]
[1726201862896,0.21454329,58018.0,58017.0,0.3608]
[1726201864192,0.21454329,58018.0,58017.0,0.3618]
[1726201864382,0.21554329,58018.0,58017.0,0.3628]
[1726201865493,0.21554329,58018.0,58017.0,0.002]
[1726201865889,0.23625174,58018.0,58017.0,0.002]
[1726201868095,0.10788345,58018.0,58017.0,0.002]
[1726201875883,0.26296308,58018.0,58017.0,0.002]
[1726201876089,0.30515836,58018.0,58017.0,0.002]
[1726201876283,0.3913312,58018.0,58017.0,0.002]
[1726201877398,0.23625157,58018.0,58017.0,0.002]
[1726201877797,0.23625164,58018.0,58017.0,0.002]
[1726201878194,0.21554319,58018.0,58017.0,0.088177]
[1726201878391,0.1626542,58018.0,58017.0,0.088177]
[1726201881708,0.22503864,58018.0,58017.0,0.088177]
[1726201881904,0.30051784,58018.0,58017.0,0.088177]
[1726201882203,0.30051746,58018.0,58017.0,0.088177]
[1726201882896,0.087175,58018.0,58017.0,0.17419853]
[1726201884195,0.087175,58018.0,58017.0,0.29469565]
[1726201887592,0.087175,58018.0,58017.0,0.20867412]
[1726201890298,0.087175,58018.0,58017.0,0.20859493]
[1726201890893,0.087175,58018.0,58017.0,0.15689186]
[1726201891298,0.087175,58018.0,58017.0,0.002]
[1726201891299,0.17335,58018.0,58017.0,0.002]
[1726201891496,0.17335,58018.0,58017.0,0.05354117]
[1726201891700,0.087175,58018.0,58017.0,0.05354117]
[1726201893193,0.087175,58018.0,58017.0,0.002]
[1726201893596,0.087175,58018.0,58017.0,0.05353837]
[1726201894397,0.087175,58018.0,58017.0,0.002]
[1726201894792,0.087175,58018.0,58017.0,0.05353749]
[1726201895001,0.087175,58018.0,58017.0,0.002]
[1726201895399,0.087175,58018.0,58017.0,0.05353606]
[1726201895800,0.087175,58018.0,58017.0,0.002]
[1726201896009,0.087175,58018.0,58017.0,0.05353596]
[1726201896704,0.087175,58018.0,58017.0,0.002]
[1726201896903,0.087175,58018.0,58017.0,0.05353292]
[1726201898004,0.16265398,58018.0,58017.0,0.002]
[1726201903204,0.16265398,58018.0,58017.0,0.088177]
[1726201906114,0.087175,58018.0,58017.0,0.29444703]
[1726201906312,0.087175,58018.0,58017.0,0.20856071]
[1726201911512,0.087175,58018.0,58017.0,0.20858575]
[1726201913012,0.087175,58018.0,58017.0,0.088177]
[1726201913325,0.21554002,58018.0,58017.0,0.088177]
[1726201915019,0.21554002,58018.0,58017.0,0.002]
[1726201918017,0.21654002,58018.0,58017.0,0.002]
[1726201919123,0.30271502,58018.0,58017.0,0.002]
[1726201920821,0.172362,58014.0,58008.0,0.004]
[1726201921030,0.08619,58008.0,58006.0,0.08591199]
[1726201921225,0.08619,58008.0,58002.0,0.10695066]
[1726201921226,0.086193,58006.0,58002.0,0.10695066]
[1726201921429,0.086193,58006.0,58005.0,0.06871369]
[1726201921727,0.086198,58003.0,58002.0,0.08591199]
[1726201921932,0.086198,58003.0,58002.0,0.20672533]
[1726201922322,0.086199,58002.0,58001.0,0.20591199]
[1726201922521,0.0410809,58002.0,58001.0,0.32667462]
[1726201923028,0.0390809,58002.0,58001.0,0.68747462]
[1726201923329,0.0390809,58002.0,58001.0,0.3608]
[1726201923521,0.1252799,58002.0,58001.0,0.3608]
[1726201923716,0.0390809,58002.0,57998.0,0.08591199]
[1726201923915,0.086205,57998.0,57997.0,0.18071199]
[1726201924119,0.086205,57998.0,57997.0,0.08591199]
[1726201924315,0.086208,57996.0,57995.0,0.06863615]
[1726201924523,0.086208,57996.0,57990.0,0.12]
[1726201924524,0.08621,57995.0,57994.0,0.06863615]
[1726201925127,0.08321,57995.0,57994.0,0.06863615]
[1726201925323,0.086212,57993.0,57992.0,0.06863615]
[1726201925522,0.086214,57992.0,57991.0,0.06863615]
[1726201925722,0.086214,57992.0,57991.0,0.05146379]
[1726201925723,0.206214,57992.0,57991.0,0.05146379]
[1726201926324,0.206214,57992.0,57989.0,0.047]
[1726201926325,0.086217,57990.0,57989.0,0.09846379]
[1726201926627,0.086217,57990.0,57989.0,0.047]
[1726201927829,0.086217,57990.0,57989.0,0.05]
[1726201928236,0.086217,57990.0,57989.0,0.003]
[1726201929230,0.086217,57990.0,57989.0,0.004]
[1726201929443,0.172434,57990.0,57989.0,0.004]
[1726201931227,0.533234,57990.0,57989.0,0.004]
[1726201932927,0.533234,57990.0,57989.0,1e-06]
[1726201932928,0.619451,57990.0,57989.0,1e-06]
[1726201933128,0.64016809,57990.0,57989.0,1e-06]
[1726201933330,0.68866809,57990.0,57989.0,1e-06]
[1726201933936,0.68866809,57990.0,57989.0,0.003001]
[1726201934735,0.69066809,57990.0,57989.0,0.001001]
[1726201935639,0.69966809,57990.0,57989.0,0.002]
[1726201938036,0.33886809,57990.0,57989.0,0.002]
[1726201938234,0.097217,57990.0,57989.0,0.3628]
[1726201939144,0.097217,57990.0,57989.0,0.38382739]
[1726201941541,0.097217,57990.0,57989.0,0.3628]
[1726201941741,0.217217,57990.0,57989.0,0.3628]
[1726201942841,0.303434,57990.0,57989.0,0.002]
[1726201943439,0.664234,57990.0,57989.0,0.002]
[1726201944944,0.68515917,57990.0,57989.0,0.002]
[1726201946052,0.73245917,57990.0,57989.0,0.002]
[1726201947049,0.81867617,57990.0,57989.0,0.002]
[1726201947847,0.73245917,57990.0,57989.0,0.002]
[1726201948048,0.81867617,57990.0,57989.0,0.002]
[1726201948249,0.258669,57986.0,57985.0,0.05146379]
[1726201948549,0.258672,57985.0,57984.0,0.05146379]
[1726201948946,0.172452,57984.0,57983.0,0.05146379]
[1726201949151,0.739478,57984.0,57983.0,0.05146379]
[1726201949347,0.086227,57983.0,57981.0,0.06863615]
[1726201949652,0.292458,57982.0,57981.0,0.06863615]
[1726201950364,0.086232,57980.0,57979.0,0.06863615]
[1726201950564,0.086233,57979.0,57978.0,0.06863615]
[1726201950754,0.206233,57979.0,57978.0,0.06863615]
[1726201950954,0.292466,57979.0,57977.0,0.06863615]
[1726201951159,0.12,57978.0,57972.0,0.004]
[1726201951362,0.086247,57970.0,57969.0,0.004]
[1726201951664,0.086248,57969.0,57968.0,0.14400826]
[1726201952374,0.086248,57969.0,57968.0,0.14402052]
[1726201952663,0.083248,57969.0,57968.0,0.14402052]
[1726201953060,0.203248,57969.0,57968.0,0.0975]
[1726201953257,0.203248,57969.0,57968.0,0.14902052]
[1726201953467,0.203248,57969.0,57968.0,0.1015]
[1726201954866,0.289496,57969.0,57968.0,0.1015]
[1726201955471,0.203248,57969.0,57968.0,0.1015]
[1726201956473,0.083248,57969.0,57968.0,0.1015]